Cogmind - Beta 9.1 @@@ ROGUE MODE // 2019.11.09 @ 21:25:00 Player: s0lid Result: Destroyed by H-66 Slayer with Gauss Rifle Performance ------------- Evolutions (4) 2000 Regions Visited (5) 1000 Robots Destroyed (94) 470 Value Destroyed (2464) 2464 Prototype IDs (5) 100 Alien Tech Used (0) 0 Bonus (35) 35 TOTAL SCORE: 6069 Bonus ------- High Alert Combat Kills 35 Cogmind --------- Core Integrity 0/850 Matter 300/300 Energy 100/100 System Corruption 1% Temperature Cool (0) Location -6/Factory Parts ------- Power (1) Propulsion (4) Utility (7) High-capacity Storage Unit Enhanced Optical Array Transport Network Coupler Improved Melee Analysis Suite Weapon (3) Katana Inventory (12) Cooled Airjet Improved Gravmag System Improved Cesium-ion Thruster Coolant Injector Matter Compressor (250) Improved Targeting Computer High-powered Shotgun Heavy Rocket Launcher Peak State ------------ Power Light Nuclear Core Propulsion Aerolev Unit Aerolev Unit Cooled Airjet Cooled Airjet Utility High-capacity Storage Unit Enhanced Optical Array Transport Network Coupler Improved Transmission Jammer Improved Light Armor Plating Reflective Plating System Shield Weapon Katana Scythe Axe Inventory Improved Carbon-fiber Leg Improved Carbon-fiber Leg Coolant Injector High-capacity Matter Pod Improved Targeting Computer Improved Targeting Computer High-powered Shotgun Heavy Rocket Launcher Impact Mace Impact Mace Katana Katana [Rating: 54] Favorites ----------- Power Ion Engine Engine Ion Engine Power Core Light Nuclear Core Propulsion Improved Carbon-fiber Leg Treads Light Treads Leg Improved Carbon-fiber Leg Wheel Compact Wheel Hover Unit Aerolev Unit Flight Unit Flight Unit Utility Large Storage Unit Device Maneuvering Thrusters Storage Large Storage Unit Processor Transport Network Coupler Hackware System Shield Protection Reflective Plating Weapon Katana Energy Gun Improved Medium Laser Ballistic Gun Assault Rifle Launcher Grenade Launcher Impact Weapon Impact Mace Slashing Weapon Katana Build | -11 -10 -9 -8 -7 -6 ------- Run | Scr Mat Mat Mat Fac Fac Slots Evolved 8 | . . 2 2 2 2 Power . | . . . . . . Propulsion 2 | . . 1 1 . . Utility 5 | . . 1 1 1 2 Weapon 1 | . . . . 1 . Parts Attached 96 | 6 2 18 35 14 21 Power 12 | 1 . 2 6 1 2 Engine 8 | 1 . 2 3 . 2 Core 4 | . . . 3 1 . Reactor . | . . . . . . Propulsion 40 | 2 . 6 14 6 12 Treads 2 | . . 2 . . . Leg 18 | . . 4 7 . 7 Wheel 4 | 2 . . 1 . 1 Hover 12 | . . . 4 6 2 Flight 4 | . . . 2 . 2 Utility 26 | 1 2 4 11 4 4 Device 6 | . . 2 3 . 1 Storage 7 | 1 2 . 3 1 . Processor 4 | . . 1 . 1 2 Hackware 1 | . . . . . 1 Protection 8 | . . 1 5 2 . Artifact . | . . . . . . Weapon 18 | 2 . 6 4 3 3 Energy Gun 2 | 1 . 1 . . . Energy Cannon . | . . . . . . Ballistic Gun 2 | 1 . 1 . . . Ballistic Cannon . | . . . . . . Launcher 2 | . . 2 . . . Special Weapon . | . . . . . . Impact Weapon 2 | . . . . 1 1 Slashing Weapon 10 | . . 2 4 2 2 Piercing Weapon . | . . . . . . Special Melee Weapon . | . . . . . . Unidentified Prototypes 5 | . . 1 1 2 1 Parts Lost 41 | . 2 2 13 1 23 Power 5 | . . 1 1 . 3 Propulsion 21 | . 1 1 8 . 11 Utility 8 | . . . 3 1 4 Weapon 7 | . 1 . 1 . 5 Highest Loss Streak 12 | . 2 1 6 1 12 Average Slot Usage (%) 91 | . 91 90 94 98 76 Engine 6 | . 14 10 4 6 . Core 1 | . . . 4 . 1 Treads 1 | . . 7 . . . Leg 21 | . . 21 28 25 7 Wheel 1 | . 25 2 . . . Hover 4 | . . . 3 4 11 Device 4 | . . 7 3 4 5 Storage 12 | . 26 14 13 10 6 Processor 6 | . . 1 8 3 13 Protection 8 | . . 3 7 16 5 Energy Gun 1 | . 10 3 . . . Ballistic Gun 1 | . 14 3 . . . Slashing Weapon 17 | . . 14 17 22 17 Naked Turns . | . . . . . . Heaviest Build 63 | 13 41 44 54 63 52 Greatest Support 72 | 26 26 40 72 72 55 Greatest Overweight (x) 13 | . 2 2 2 2 13 Average Overweight (x) . | . . . . . . Largest Inventory Capacity 18 | 6 16 16 16 18 12 Average Capacity 12 | 5 14 12 11 13 12 Most Carried 16 | 6 12 12 14 16 12 Average Carried 11 | 2 9 10 11 13 10 Final Capacity 16 | 6 16 10 16 12 12 Final Carried 14 | 6 12 10 14 12 8 Class Distribution -------------------- 73% | Mutant 26% | Scavenger-Mutant Dominant Class ---------------- Mutant | -10/Materials Mutant | -9/Materials Mutant | -8/Materials Mutant | -7/Factory Mutant | -6/Factory Resources | -11 -10 -9 -8 -7 -6 ----------- Run | Scr Mat Mat Mat Fac Fac Matter Collected 1793 | 150 94 464 535 135 415 Remotely . | . . . . . . Salvage Created 3758 | . 208 910 1093 466 1081 Parts 218 | . 9 61 81 26 41 Haulers Intercepted 12 | . 1 4 4 1 2 Recyclers Shooed . | . . . . . . Parts Field Recycled . | . . . . . . Retrieved Matter . | . . . . . . Parts Self-Destructed . | . . . . . . Prevented . | . . . . . . Kills | -11 -10 -9 -8 -7 -6 ------- Run | Scr Mat Mat Mat Fac Fac Combat Hostiles Destroyed 66 | . 4 20 24 7 11 Melee 50 | . . 8 24 7 11 Guns 13 | . 4 9 . . . AOE 3 | . . 3 . . . Classes Destroyed 12 | . 3 3 4 1 1 Worker 9 | . . 2 6 . 1 Tunneler 1 | . . . 1 . . Hauler 12 | . 1 4 4 1 2 Recycler 2 | . . . . . 2 Operator 2 | . 1 1 . . . Watcher 2 | . . . 1 1 . Swarmer 23 | . . 7 14 . 2 Grunt 25 | . 4 10 5 4 2 Brawler 1 | . . . 1 . . Sentry 9 | . . 3 3 2 1 Hunter 5 | . . . 1 . 4 Programmer 3 | . . . . 1 2 Best Kill Streak 6 | . 3 6 5 4 4 Combat Bots Only 6 | . 2 6 4 3 4 Max Kills in Single Turn 4 | . 1 4 1 1 1 Gunslinging . | . . . . . . Exploded 2 | . . 2 . . . Melee 1 | . . 1 1 1 1 Uniques/NPCs Destroyed . | . . . . . . Combat | -11 -10 -9 -8 -7 -6 -------- Run | Scr Mat Mat Mat Fac Fac Damage Taken 6315 | . 337 709 1912 560 2797 Core 1455 | . 141 111 286 48 869 Absorbed by Shields . | . . . . . . Core Remaining (%) 71 | 100 43 72 48 93 . Volleys Fired 56 | . 16 40 . . . Largest 2 | . 2 2 . . . Hottest 86 | . 60 86 . . . Shots Fired 103 | . 29 74 . . . Gun 101 | . 29 72 . . . Cannon . | . . . . . . Launcher 2 | . . 2 . . . Special . | . . . . . . Kinetic 51 | . 16 35 . . . Thermal 37 | . . 37 . . . Explosive 2 | . . 2 . . . Electromagnetic 13 | . 13 . . . . Robot Hit Streak 12 | . 9 12 . . . Robot Miss Streak 2 | . 2 2 . . . Penetration Max . | . . . . . . Secondary Targets 2 | . . 2 . . . Max Gunslinging Chain 1 | . . 1 . . . Shots Hit Robots 271 | . 14 83 78 29 67 Core Hits 118 | . 10 33 39 11 25 Critical Hits 1 | . . . 1 . . Critical Kills 1 | . . . 1 . . Critical Parts Destroyed . | . . . . . . Melee Attacks 286 | . . 53 111 40 82 Impact 6 | . . . . . 6 Slashing 280 | . . 53 111 40 76 Piercing . | . . . . . . Sneak Attacks 29 | . . 4 17 1 7 Combat Hostiles . | . . . . . . Follow-up Attacks 50 | . . 7 14 9 20 Damage Inflicted 10089 | . 368 2338 3599 1093 2691 Guns 952 | . 221 731 . . . Cannons . | . . . . . . Explosions 353 | . 147 206 . . . Melee 8784 | . . 1401 3599 1093 2691 Ramming . | . . . . . . Kinetic 420 | . 114 306 . . . Thermal 425 | . . 425 . . . Explosive 353 | . 147 206 . . . Electromagnetic 107 | . 107 . . . . Impact 163 | . . . . . 163 Slashing 8621 | . . 1401 3599 1093 2528 Piercing . | . . . . . . Highest Corruption 1 | . . . . 1 1 Average Corruption 1 | . . . . 1 1 Corruption Purged . | . . . . . . Effects 2 | . . . . 2 . Energy Discharges 1 | . . . . 1 . Targeting Errors 1 | . . . . 1 . Overload Shots . | . . . . . . Overflow Damage 846 | . . 114 336 131 265 Projectiles . | . . . . . . Explosions . | . . . . . . Melee 846 | . . 114 336 131 265 Knockbacks . | . . . . . . Impact . | . . . . . . Kinetic . | . . . . . . Secondary . | . . . . . . Self-Inflicted Damage 73 | . 73 . . . . Shots 1 | . 1 . . . . Rammed . | . . . . . . Targets Rammed . | . . . . . . Kicked . | . . . . . . Crushed . | . . . . . . Highest Temperature 257 | . 90 126 4 257 . Average Temperature 42 | . 48 33 1 111 . Received Heat Transfer 1212 | . 153 222 405 273 159 Siege Activations . | . . . . . . Robots Corrupted . | . . . . . . Combat Hostiles . | . . . . . . Parts Fried . | . . . . . . Impact Corruptions 1 | . . . . . 1 Robots Melted . | . . . . . . Combat Hostiles . | . . . . . . Parts Melted 2 | . . 2 . . . Heat Transferred 925 | . . 925 . . . Parts Sabotaged . | . . . . . . Parts Stolen . | . . . . . . Parts Stripped . | . . . . . . Power Chain Reactions . | . . . . . . Missiles Intercepted . | . . . . . . Alert | -11 -10 -9 -8 -7 -6 ------- Run | Scr Mat Mat Mat Fac Fac Peak Influence 453 | . 167 453 344 227 120 Average Influence 176 | . 59 348 210 95 40 Maximum Alert Level 2 | . . 2 1 1 . Low Security (%) 57 | . . . . . . Level 1 32 | . . . . . . Level 2 9 | . . . . . . Level 3 . | . . . . . . Level 4 . | . . . . . . Level 5 . | . . . . . . High Security . | . . . . . . Max Security . | . . . . . . Squads Dispatched 16 | . 1 4 6 3 2 Investigation 4 | . . 2 1 1 . Extermination 2 | . . . . 1 1 Reinforcement 4 | . 1 2 . 1 . Assault . | . . . . . . Garrison 6 | . . . 5 . 1 Intercept . | . . . . . . Construction Impeded . | . . . . . . Haulers Reinforced 1 | . . . . 1 . Stealth | -11 -10 -9 -8 -7 -6 --------- Run | Scr Mat Mat Mat Fac Fac Distress Signals 9 | . . 3 3 . 3 Communications Jammed . | . . . . . . Distress Signals . | . . . . . . Times Spotted 120 | . 8 31 46 13 22 Peak Tracking Total 9 | . 4 8 7 4 9 Tactical Retreats 12 | . . 2 6 . 4 Traps | -11 -10 -9 -8 -7 -6 ------- Run | Scr Mat Mat Mat Fac Fac Traps Triggered 2 | . . . 1 1 . Indirectly . | . . . . . . Trap Hack Attempts . | . . . . . . Triggered . | . . . . . . Disarmed . | . . . . . . Reprogrammed . | . . . . . . Reused . | . . . . . . Traps Extracted . | . . . . . . Installed . | . . . . . . Triggered . | . . . . . . Machines | -11 -10 -9 -8 -7 -6 ---------- Run | Scr Mat Mat Mat Fac Fac Machines Disabled 4 | . 3 1 . . . Max in Single Turn 2 | . 2 1 . . . Machines Sabotaged . | . . . . . . Garrisons Compromised . | . . . . . . Overloaded Fab Kills . | . . . . . . Fab Network Shutdowns . | . . . . . . Hacking | -11 -10 -9 -8 -7 -6 --------- Run | Scr Mat Mat Mat Fac Fac Machines Accessed 18 | . . 5 7 3 3 Terminals 13 | . . 4 5 3 1 Fabricators 2 | . . . . . 2 Repair Stations 1 | . . . 1 . . Recycling Units . | . . . . . . Scanalyzers 2 | . . 1 1 . . Garrison Access . | . . . . . . Total Hacks 48 | . . 16 25 4 3 Successful 26 | . . 8 15 2 1 Failed 22 | . . 8 10 2 2 Catastrophic 6 | . . 3 2 . 1 Database Lockouts . | . . . . . . Manual 17 | . . 5 9 2 1 Terminals 26 | . . 10 11 4 1 Fabricators 2 | . . . . . 2 Repair Stations 6 | . . . 6 . . Recycling Units . | . . . . . . Scanalyzers 14 | . . 6 8 . . Garrison Access . | . . . . . . Terminal Hacks 6 | . . 2 2 2 . Unreport Threat 2 | . . . 1 1 . Locate Traps 3 | . . 1 1 1 . Hauler Manifests 1 | . . 1 . . . Fabricator Hacks 1 | . . . . . 1 Build 1 | . . . . . 1 Repair Station Hacks 6 | . . . 6 . . Scan Component 3 | . . . 3 . . Repair 3 | . . . 3 . . Recycling Unit Hacks . | . . . . . . Scanalyzer 13 | . . 6 7 . . Insert Component 6 | . . 3 3 . . Analyze 7 | . . 3 4 . . Garrison Access Hacks . | . . . . . . Unauthorized Hacks . | . . . . . . Terminals . | . . . . . . Fabricators . | . . . . . . Repair Stations . | . . . . . . Recycling Units . | . . . . . . Scanalyzers . | . . . . . . Garrison Access . | . . . . . . Data Cores Recovered . | . . . . . . Used . | . . . . . . Hacking Detections 16 | . . 5 7 1 3 Full Trace Events 4 | . . 2 2 . . Feedback Events . | . . . . . . Feedback Blocked . | . . . . . . Robot Schematics Acquired . | . . . . . . Robots Built . | . . . . . . Matter . | . . . . . . Time . | . . . . . . Total Robot Build Rating . | . . . . . . Part Schematics Acquired 5 | . . 3 2 . . Parts Built 2 | . . . . . 2 Matter 212 | . . . . . 212 Time 106 | . . . . . 106 Total Part Build Rating 12 | . . . . . 12 Parts Repaired 3 | . . . 3 . . Time 136 | . . . 136 . . Parts Recycled . | . . . . . . Recycled Matter . | . . . . . . Retrieved Matter . | . . . . . . Retrieved Components . | . . . . . . Parts Scanalyzed 6 | . . 3 3 . . Part Schematics Acquired 5 | . . 3 2 . . Parts Damaged . | . . . . . . Bothacking | -11 -10 -9 -8 -7 -6 ------------ Run | Scr Mat Mat Mat Fac Fac Used RIF Installer . | . . . . . . Robots Hacked . | . . . . . . Non-combat . | . . . . . . Combat . | . . . . . . Robot Hacks Applied . | . . . . . . Relay Couplers Released . | . . . . . . Robots Rewired . | . . . . . . Allies Hacked . | . . . . . . Hacks Repelled . | . . . . . . Allies | -11 -10 -9 -8 -7 -6 -------- Run | Scr Mat Mat Mat Fac Fac Total Allies . | . . . . . . Largest Group . | . . . . . . Highest-Rated Group . | . . . . . . Highest-Rated Ally . | . . . . . . Total Orders . | . . . . . . Ally Attacks . | . . . . . . Total Damage . | . . . . . . Kills . | . . . . . . Allies Corrupted . | . . . . . . Allies Melted . | . . . . . . Intel | -11 -10 -9 -8 -7 -6 ------- Run | Scr Mat Mat Mat Fac Fac Robot Analysis Total . | . . . . . . Derelict Logs Recovered . | . . . . . . Drone Launches . | . . . . . . Drone Recoveries . | . . . . . . Exploration | -11 -10 -9 -8 -7 -6 ------------- Run | Scr Mat Mat Mat Fac Fac Turns Passed 3666 | 49 160 818 1155 924 560 Spaces Moved 2240 | 37 106 421 682 669 325 Core 3 | 1 . . . . 2 Treads 38 | . . 38 . . . Legs 1545 | . . 319 568 528 130 Wheels 245 | 36 106 64 38 . 1 Hover 409 | . . . 76 141 192 Flight . | . . . . . . Fastest Speed 30 | 50 90 120 38 30 34 Average Speed 113 | 92 101 125 112 114 104 Slowest Speed 700 | 100 120 180 180 186 700 Overloaded Moves 67 | . . . . 13 54 Propulsion Burnouts . | . . . . . . Robots Hopped . | . . . . . . Cave-ins Triggered . | . . . . . . Exploration Rate (%) 24 | 4 26 40 46 23 9 Regions Visited 5 Branch Regions . Pre-discovered Areas . | . . . . . . Known Exits Taken . | . . . . . . Unknown Exits Taken 5 | 1 1 1 1 1 . Scrap Searched . | . . . . . . Spaces Dug . | . . . . . . Terrain Destroyed 57 | . 44 13 . . . Melee . | . . . . . . Projectile . | . . . . . . AOE 57 | . 44 13 . . . Actions | -11 -10 -9 -8 -7 -6 --------- Run | Scr Mat Mat Mat Fac Fac Total 2887 | 48 128 570 925 776 440 Wait 174 | . . 18 87 41 28 Move 2235 | 36 105 420 681 668 325 Hop . | . . . . . . Pick Up 46 | 6 5 11 12 9 3 Fast Attach 55 | 6 1 8 20 7 13 Attach 18 | . . 5 5 4 4 Detach 8 | . . 3 3 2 . Swap 23 | . 1 5 10 3 4 Drop 46 | . . 14 15 13 4 Fire 56 | . 16 40 . . . Melee 226 | . . 46 92 29 59 Ram . | . . . . . . Kick . | . . . . . . Crush . | . . . . . . Escape Stasis . | . . . . . . Rewire . | . . . . . . Trap . | . . . . . . Miscellaneous . | . . . . . . Route ------- -11/Scrapyard -10/Materials -9/Materials (discovered 3 exits: *Mat / [*Min x2]) -8/Materials -7/Factory -6/Factory History --------- Turn | Location | Event 16 | -11/Scrapyard | Discovered new exit (range 16) 50 | -11/Scrapyard | Entered Materials 189 | -10/Materials | Core integrity fell below 50% 200 | -10/Materials | Discovered new exit (range 3) 210 | -10/Materials | Entered another Materials area 210 | -9/Materials | Evolved 2 slots: Propulsion x1, Utility x1 335 | -9/Materials | Discovered new exit (range 15) 338 | -9/Materials | Build established: Mutant 398 | -9/Materials | Discovered new exit (range 13) 911 | -9/Materials | Discovered new exit (range 13) 1028 | -9/Materials | Build established: Scavenger-Mutant 1028 | -9/Materials | Entered another Materials area 1028 | -8/Materials | Evolved 2 slots: Propulsion x1, Utility x1 1213 | -8/Materials | Garrison activated, responded to threat 1241 | -8/Materials | Discovered new exit (range 16) 1286 | -8/Materials | Lost 6 parts (1p3n1u1w) 1383 | -8/Materials | Lost 3 parts (2n1u) 1581 | -8/Materials | Lost 3 parts (3n) 1887 | -8/Materials | Repaired Katana 1930 | -8/Materials | Repaired Katana 1991 | -8/Materials | Repaired Aerolev Unit? 2046 | -8/Materials | Garrison activated, responded to threat 2080 | -8/Materials | Build established: Mutant 2149 | -8/Materials | Core integrity fell below 50% 2183 | -8/Materials | Entered Factory 2183 | -7/Factory | Evolved 2 slots: Utility x1, Weapon x1 3089 | -7/Factory | Discovered new exit (range 8) 3107 | -7/Factory | Entered another Factory area 3107 | -6/Factory | Evolved 2 slots: Utility x2 3498 | -6/Factory | Core integrity fell below 50% 3535 | -6/Factory | Lost 12 parts (1p6n2u3w) 3596 | -6/Factory | Garrison activated, responded to threat 3640 | -6/Factory | Core integrity fell below 20% 3643 | -6/Factory | Fabricated Mass Driver? 3667 | -6/Factory | Destroyed by H-66 Slayer with Gauss Rifle Last Messages --------------- 03657_ Flexi-carbon Leg destroyed. 03658_ Slug penetrates Wall. 03658_ Imp. Transmission Jammer destroyed. 03658_ K-01 Serf cleans the Repair Station. 03661_ Slug penetrates Wall. 03661_ Penetrated by Slug. 03661_ Lgt. Angular Momentum Engine destroyed. 03661_ Slug penetrates Wall. 03661_ Destroyed Phase Shifter. 03661_ Slug penetrates Wall. 03662_ K-01 Serf cleans the Repair Station. 03664_ Penetrated by Slug. 03664_ Com. Wheel destroyed. 03664_ Penetrated by Slug. 03664_ Scythe destroyed. 03664_ Slug penetrates Wall. 03666_ H-66 Slayer destroyed. 03667_ Slug penetrates Wall. 03667_ Impact Mace destroyed. 03667_ Slug penetrates Wall. Map ----- +----------------------------------------------------+ | ????????????# #?????????????? ??????????????? | | ???########## ###???????????? ???????????????? | | ???# # #???????????? ?????????????????? | | ???# # #############+##?????????????????? | | ???# """ + %%%+ % %[! #?????????????????? | | ???# """ # ###%% #?????????????????? | | ???# """ # #?# =% A #?????????????????? | | ???# #######?# ] #?????????????????? | | ???########???????# "" "" # ???????? | | ??????????????????# " "" + ???????? | | ??????????????????# """ """ # ???????? | | ??????????????????# """ """ # "T????????? | | ??????????????????# """ """ #? ###?????????? | | ??????????????????# #?? #???????????? | | ??????????????????# ! #?? #???????????? | | ??????????????????# ! #??? #???????????? | | ??????????????????######+#######???? #???????????? | | ?????????????????????# ! #???? #???????????? | | ?????????????????????# "F""%!! #?????#???????????? | | ?????????????????????# """" !! #?????????????????? | | ?????????????????????# ==%[ !! #?????????????????? | | ?????????????????????#####/#####?????????????????? | | ??????????????????########%#?????????????????????? | | ??????????????????# =%!=#[#?????????????????????? | | ??????????????????# ""%%#k##### #???????????? | | ??????????????????# """!@=!kk[% #???????????? | | ??????????????????# R"=#!#######+###???????????? | | ??????????????????# """!#h#?????????????????????? | | ??????????????????# k!*%# #?????????????????????? | | ??????????????????######## #?????????????????????? | | ?????????????????????????# #?????????????????????? | | ?????????????????????????# #?????????????????????? | | ?????????????????????????# #?????????????????????? | | ?????????????????????????# #?????????????????????? | | ?????????????????????????# #?????????????????????? | | ?????????????????????????# #?????????????????????? | | ?????????????????????????# #?????????????????????? | | ?????????????????????????? ??????????????????????? | | ?????????????????????????? ??????????????????????? | | ??????????A??????????????? ??????????????????????? | | ?????????????????????????? ??????????????????????? | | ?????????????????????????? ??????????????????????? | | ??????????????????????????"??????????????????????? | | ??????????????????????????"??????????????????????? | | ?????????????????????????????????????????????????? | | ?????????????????????????????????????????????????? | | ?????????????????????????????????????????????????? | | ?????????????????????????????????????????????????? | | ?????????????????????????????????????????????????? | | ?????????????????????????????????????????????????? | +----------------------------------------------------+ Best States ------------- Heat Dissipation 42 Energy Generation 18 Energy Capacity 275 Matter Stores 300 Matter Capacity 300 Sight Range 22 Robot Scan Range 13 Terrain Scan Range 20 Terrain Scan Density 10 Armor Coverage 525 Resistance: TH 10 Evasion (%) 58 Melee Accuracy 6 Recoil Reduction 2 Defensive Hacking 10 Item Schematics ----------------- Katana | -9/Materials | Scanalyzed Grenade Launcher | -9/Materials | Scanalyzed Imp. Targeting Computer | -9/Materials | Scanalyzed Datajack | -8/Materials | Scanalyzed Hpw. Shotgun | -8/Materials | Scanalyzed Robot Schematics ------------------ None Fabricated ------------ Mass Driver | x2 | -6/Factory | Preloaded Alien Tech Used ----------------- None Achievements -------------- None Challenges ------------ None Game ------ Seed MiniElectronProjector Manual? 0 Play Time 00:53:10 Cumulative 74.4 hours Start 2019.11.09 @ 20:33:33 End 2019.11.09 @ 21:25:00 Sessions 1 Manual Loads 0 Difficulty Rogue Special Mode None Game No. 70 Rogue 70 Adventurer 0 Explorer 0 Win Type - Total 0 Types 0/0/0/0/0/0/0 Lore% 23 Gallery% 48 Achievement% 24 Wizard Run 0 Options --------- ASCII 0 Keyboard 1 Movement Vi Keybinds 0 Fullscreen 2 Font 32/Smallcaps Map View 76x50 Tactical HUD 1 Map Filters NONE Filters NONE Steam X RUN: f49307c5-1361-4956-b085-a2c9b5061c09